Cogmind - Beta 13 @@@ ROGUE MODE // 2024.06.17 @ 20:35:34 Player: DaddyWalrus Result: Self-destructed Performance ------------- Evolutions (4) 2000 Regions Visited (14) 2800 Robots Destroyed (204) 1020 Value Destroyed (8971) 8971 Prototype IDs (32) 640 Alien Tech Used (0) 0 Bonus (3539) 3539 TOTAL SCORE: 18970 Bonus ------- High Alert Combat Kills 928 Follower Combat Kills 692 Entered Garrisons 600 Used RIF Installer 1500 Aligned with FarCom 300 Friendly Fire -481 Cogmind --------- Core Integrity 805/850 Matter 255/300 Energy 350/350 System Corruption 1% Temperature Warning (312) Movement Rolling (115) Ox1 Location -6/Factory Parts ------- > --- POWER (1) -------- Reinforced Quantum Reactor > --- PROPULSION (2) --- Armored Huge Wheel > --- UTILITY (9) ------ Lightpack 2.0 Improved Signal Interpreter Relay Coupler [NC] (30) Relay Coupler [Sentry] (30) Improved Dynamic Insulation System > --- WEAPON (3) ------- Flak Gun Mace > --- INVENTORY (40) --- Reinforced Deuterium Engine Improved Medium Treads Armored Heavy Treads Huge Storage Unit Advanced Targeting Computer Energy Filter Medium Reactive Plating Medium Reactive Plating Relay Coupler [NC] (27) Relay Coupler [NC] (27) Relay Coupler [NC] (28) Relay Coupler [NC] (36) Relay Coupler [Swarmer] (41) Relay Coupler [Swarmer] (37) Relay Coupler [Swarmer] (49) Relay Coupler [Grunt] (29) Relay Coupler [Brawler] (31) Relay Coupler [Sentry] (21) Relay Coupler [Sentry] (21) Relay Coupler [Sentry] (27) Relay Coupler [Sentry] (19) Relay Coupler [Demolisher] (21) Relay Coupler [Demolisher] (34) Relay Coupler [Hunter] (15) Relay Coupler [Heavy] (15) System Restoration Module Flak Gun Flak Gun Improved Proton Missile Launcher Missile Launcher Blade Saw Peak State ------------ > --- POWER ------------ Reinforced Quantum Reactor > --- PROPULSION ------- Armored Heavy Treads > --- UTILITY ---------- Improved Cooling System Lightpack 2.0 Improved Heavy Armor Plating Relay Coupler [NC] Relay Coupler [Sentry] Improved Dynamic Insulation System > --- WEAPON ----------- Particle Gun Plasma Cannon Mace > --- INVENTORY -------- Reinforced Deuterium Engine Armored Huge Wheel Huge Storage Unit Improved Signal Interpreter Advanced Targeting Computer Energy Filter Medium Reactive Plating Medium Reactive Plating Relay Coupler [NC] Relay Coupler [NC] Relay Coupler [NC] Relay Coupler [NC] Relay Coupler [Swarmer] Relay Coupler [Swarmer] Relay Coupler [Swarmer] Relay Coupler [Grunt] Relay Coupler [Brawler] Relay Coupler [Sentry] Relay Coupler [Sentry] Relay Coupler [Sentry] Relay Coupler [Sentry] Relay Coupler [Demolisher] Relay Coupler [Demolisher] Relay Coupler [Hunter] Relay Coupler [Heavy] System Restoration Module Flak Gun Flak Gun Flak Gun Improved Proton Missile Launcher Missile Launcher Blade Saw [Rating: 99] Favorites ----------- Power Cooled Ion Engine Engine Cooled Ion Engine Power Core Light Nuclear Core Reactor Reinforced Quantum Reactor Propulsion Improved Treads Treads Improved Treads Leg Aluminum Leg Wheel Compact Wheel Utility Lightpack 2.0 Device Improved Cooling System Storage Lightpack 2.0 Processor Improved Signal Interpreter Hackware Relay Coupler [NC] Protection Medium Armor Plating Weapon Autogun Energy Gun Advanced Beam Rifle Energy Cannon Plasma Cannon Ballistic Gun Autogun Ballistic Cannon Assault Cannon Launcher Mini Grenade Launcher Impact Weapon Mace Slashing Weapon Chainsword Special Melee Weapon Improved Datajack Build | -11 -10 -9 -9 -9 -8 -8 -8 -7 -7 -7 -7 -7 -7 -6 ------- Run | Yrd Mat Mat Min Exi Min Mat Gar Fac Was Fac Gar Fac Gar Fac Slots Evolved 8 | . . 2 . . . 2 . 2 . . . . . 2 Power . | . . . . . . . . . . . . . . . Propulsion . | . . . . . . . . . . . . . . . Utility 7 | . . 1 . . . 2 . 2 . . . . . 2 Weapon 1 | . . 1 . . . . . . . . . . . . Parts Attached 374 | 7 24 81 7 2 19 32 50 8 4 25 44 21 42 8 Power 18 | 1 4 4 . . . 2 2 . . . 5 . . . Engine 15 | 1 3 4 . . . 2 2 . . . 3 . . . Core 2 | . 1 . . . . . . . . . 1 . . . Reactor 1 | . . . . . . . . . . . 1 . . . Propulsion 72 | 2 4 40 2 . 6 4 4 2 2 . 3 . 1 2 Treads 38 | 1 2 20 1 . 3 4 4 2 . . . . . 1 Leg 1 | . 1 . . . . . . . . . . . . . Wheel 33 | 1 1 20 1 . 3 . . . 2 . 3 . 1 1 Hover . | . . . . . . . . . . . . . . . Flight . | . . . . . . . . . . . . . . . Utility 114 | 2 6 23 3 . 7 10 11 2 1 12 10 14 10 3 Device 59 | 1 3 10 2 . 2 6 3 2 . 11 4 10 4 1 Storage 5 | 1 2 1 . . . 1 . . . . . . . . Processor 1 | . . . . . . . . . . . . . . 1 Hackware 15 | . . . . . . . 3 . 1 1 3 2 5 . Protection 34 | . 1 12 1 . 5 3 5 . . . 3 2 1 1 Artifact . | . . . . . . . . . . . . . . . Weapon 170 | 2 10 14 2 2 6 16 33 4 1 13 26 7 31 3 Energy Gun 30 | 1 1 . . . . . . 1 . 4 9 3 10 1 Energy Cannon 17 | . . . . . . . 3 2 . 3 3 1 4 1 Ballistic Gun 52 | 1 6 10 1 1 4 10 17 . . 1 . . . 1 Ballistic Cannon 2 | . . . . . . 1 1 . . . . . . . Launcher 19 | . . 2 1 1 2 1 5 . . . 3 . 4 . Special Weapon . | . . . . . . . . . . . . . . . Impact Weapon 16 | . 3 2 . . . 4 2 . . . . . 5 . Slashing Weapon 16 | . . . . . . . 2 1 . 2 8 1 2 . Piercing Weapon . | . . . . . . . . . . . . . . . Special Melee Weapon 18 | . . . . . . . 3 . 1 3 3 2 6 . Unidentified Prototypes 2 | . . . . . . 1 . . . . 1 . . . Corrupted Parts 1 | . . . . . . . 1 . . . . . . . System Corruption 1 | . . . . . . . 1 . . . . . . . Parts Lost 46 | . 5 1 1 . 3 6 5 . . . 9 . 11 5 Power 5 | . 2 . . . . . 1 . . . 2 . . . Propulsion 7 | . 1 . . . . 1 2 . . . 1 . 1 1 Utility 19 | . 2 1 1 . 3 3 1 . . . 3 . 3 2 Weapon 15 | . . . . . . 2 1 . . . 3 . 7 2 Highest Loss Streak 7 | . 3 1 1 . 3 2 4 . . . 2 . 7 2 To Critical Strikes . | . . . . . . . . . . . . . . . Average Slot Usage (%) 88 | . 99 100 100 100 100 80 80 82 84 83 79 75 73 67 Engine 7 | . 9 11 11 11 11 8 9 7 7 7 4 . . . Reactor 1 | . . . . . . . . . . . . 7 7 6 Treads 9 | . 13 9 11 11 12 17 17 15 . . . . . . Wheel 8 | . 14 12 10 11 9 . . . 14 15 10 7 7 5 Device 6 | . 3 7 11 11 4 7 2 13 7 8 6 8 5 7 Storage 9 | . 14 11 11 11 11 9 9 7 7 7 7 7 7 6 Hackware 5 | . . . . . . . 6 7 14 13 16 12 16 13 Protection 9 | . 10 14 11 11 17 9 8 7 7 7 6 7 5 4 Energy Gun 4 | . 1 . . . . . . 1 7 15 14 15 14 1 Energy Cannon 1 | . . . . . . . 2 2 . . 2 1 2 6 Ballistic Gun 18 | . 22 31 27 32 30 23 21 16 7 1 . . . 1 Launcher 1 | . . . 5 . 2 . . . . . . . . . Impact Weapon 1 | . 3 . . . . 2 . . . . . . 2 6 Naked Turns . | . . . . . . . . . . . . . . . Heaviest Build 111 | 14 56 105 105 105 111 34 37 42 33 41 59 59 62 67 Greatest Support 60 | 10 20 26 46 16 46 46 44 56 24 24 28 28 28 60 Greatest Overweight (x) 6 | 1 5 6 6 6 6 1 1 . 1 1 2 2 2 2 Average Overweight (x) 2 | . 3 5 5 6 5 . . . 1 1 1 1 1 1 Largest Inventory Capacity 40 | 8 20 25 25 25 25 40 40 40 40 40 40 40 40 40 Average Capacity 31 | 7 16 22 25 25 25 39 40 40 40 40 40 40 40 40 Most Carried 40 | 8 20 25 25 25 25 40 40 40 40 40 40 40 40 38 Average Carried 29 | 4 14 21 24 24 24 34 39 39 38 37 38 37 36 34 Final Capacity 40 | 8 20 25 25 25 25 40 40 40 40 40 40 40 40 40 Final Carried 40 | 8 20 25 25 25 25 40 40 40 40 39 40 38 37 32 Class Distribution -------------------- 29% | Tank 17% | Bothacker-Mutant 12% | Hauler-Skirmisher 12% | Mutant 11% | Bothacker-Skirmisher 10% | Hauler-Mutant Dominant Class ---------------- Mutant | -10/Materials Tank | -9/Materials Tank | -9/Mines Tank | -9/Exiles Tank | -8/Mines Hauler-Skirmisher | -8/Materials Hauler-Skirmisher | -8/Garrison Bothacker-Skirmisher | -7/Factory Bothacker-Mutant | -7/Waste Bothacker-Mutant | -7/Factory Bothacker-Mutant | -7/Garrison Bothacker-Mutant | -7/Factory Bothacker-Mutant | -7/Garrison Hauler-Mutant | -6/Factory Resources | -11 -10 -9 -9 -9 -8 -8 -8 -7 -7 -7 -7 -7 -7 -6 ----------- Run | Yrd Mat Mat Min Exi Min Mat Gar Fac Was Fac Gar Fac Gar Fac Matter Collected 7530 | 282 705 1492 477 . 339 1096 1346 50 . 239 625 129 710 40 Remotely 668 | . . . . . . 528 140 . . . . . . . Salvage Created 8109 | 138 690 1525 241 . 328 1225 1070 . . 239 1570 104 788 191 Parts 403 | 7 55 105 16 . 17 60 51 . . 9 41 3 36 3 Haulers Intercepted 8 | . 2 3 . . . 3 . . . . . . . . Recyclers Shooed 1 | . . 1 . . . . . . . . . . . . Parts Field Recycled . | . . . . . . . . . . . . . . . Retrieved Matter . | . . . . . . . . . . . . . . . Parts Self-Destructed . | . . . . . . . . . . . . . . . Prevented . | . . . . . . . . . . . . . . . Kills | -11 -10 -9 -9 -9 -8 -8 -8 -7 -7 -7 -7 -7 -7 -6 ------- Run | Yrd Mat Mat Min Exi Min Mat Gar Fac Was Fac Gar Fac Gar Fac Combat Hostiles Destroyed 156 | . 14 29 8 . 7 22 27 . . 1 20 1 23 4 Melee 2 | . . . . . . . . . . . . . . 2 Guns 109 | . 14 23 6 . 5 19 18 . . 1 13 . 9 1 Cannons 8 | . . . . . . . . . . . . . 7 1 AOE 36 | . . 6 2 . 2 3 9 . . . 7 . 7 . Classes Destroyed 18 | 2 6 3 1 . 1 . 2 . . . 2 1 . . Worker 10 | . 1 5 . . . 1 . . . 2 . 1 . . Builder 1 | . . 1 . . . . . . . . . . . . Tunneler 4 | 2 1 . . . . . . . . 1 . . . . Hauler 8 | . 2 3 . . . 3 . . . . . . . . Recycler 6 | 1 . 3 . . . 1 . . . 1 . . . . Operator 6 | . 2 2 . . . 1 . . . . 1 . . . Watcher 10 | . 2 3 . . . 3 . . . . . 2 . . Swarmer 43 | . 3 11 4 . . 6 7 . . . 3 . 9 . Cutter 2 | . . . . . . . 2 . . . . . . . Grunt 74 | . 11 8 1 . 5 13 14 . . . 12 . 8 2 Brawler 3 | . . 1 . . 1 . 1 . . . . . . . Duelist 5 | . . . 1 . . 1 1 . . . 2 . . . Protector 1 | . . . . . . . . . . . 1 . . . Sentry 18 | . . 9 2 . . 2 . . . 1 . . 4 . Demolisher 1 | . . . . . . . . . . . 1 . . . Specialist 2 | . . . . . . . 2 . . . . . . . Hunter 4 | . . . . . 1 . 1 . . . 1 . 1 . Programmer 6 | . . . . . . . . . . . . 1 3 2 Best Kill Streak 6 | 3 4 6 3 . 4 6 5 . . 2 5 2 5 1 Combat Bots Only 6 | . 3 5 3 . 4 6 5 . . 1 5 1 5 1 Max Kills in Single Turn 3 | 1 2 3 2 . 2 3 3 . . 1 2 2 3 1 Gunslinging 1 | . 1 . 1 . . 1 . . . . . . 1 . Exploded 3 | . . 3 1 . 2 3 3 . . . 2 . 3 . Melee 1 | . . . . . . . . . . . . . . 1 Uniques/NPCs Destroyed . | . . . . . . . . . . . . . . . Combat | -11 -10 -9 -9 -9 -8 -8 -8 -7 -7 -7 -7 -7 -7 -6 -------- Run | Yrd Mat Mat Min Exi Min Mat Gar Fac Was Fac Gar Fac Gar Fac Hostile Shots Fired 1000 | . 112 113 32 . 39 106 119 . . 47 88 42 194 108 Missed 273 | . 30 38 6 . 9 31 33 . . 16 21 14 49 26 Damage Taken 10035 | . 977 870 350 . 491 1144 1534 . . 234 1336 259 1755 1085 Core 1018 | . 180 97 52 . 17 61 154 . . 5 146 37 224 45 Absorbed by Shields 10 | . . . . . . . . . . . 10 . . . Redirected to Shielding 59 | . . 27 . . 23 . 9 . . . . . . . Core Remaining (%) 57 | 100 28 . . . 58 . 60 . . . . . 41 . Volleys Fired 522 | 4 96 87 17 . 21 69 74 6 . 7 55 8 61 17 Largest 3 | 2 2 3 3 . 3 3 3 1 . 3 3 3 3 2 Hottest 229 | 60 70 76 76 . 74 95 116 80 . 229 221 221 210 145 Shots Fired 1224 | 8 186 255 47 . 53 194 177 6 . 17 124 19 105 33 Gun 1093 | 8 186 251 44 . 48 183 154 . . 14 112 17 59 17 Cannon 74 | . . . . . . 7 11 6 . 3 2 2 27 16 Launcher 57 | . . 4 3 . 5 4 12 . . . 10 . 19 . Special . | . . . . . . . . . . . . . . . Kinetic 842 | 4 144 251 44 . 48 190 156 . . . . . . 5 Thermal 324 | 4 42 . . . . . 8 6 . 17 114 19 86 28 Explosive 57 | . . 4 3 . 5 4 12 . . . 10 . 19 . Electromagnetic 1 | . . . . . . . 1 . . . . . . . Robot Hit Streak 22 | 5 12 19 7 . 6 12 10 . . 11 22 6 12 6 Robot Miss Streak 5 | . 3 4 2 . 2 3 2 . . 2 5 4 5 4 Penetration Max 1 | . . . . . . 1 . . . . . . . . Secondary Targets 11 | . 1 . 1 . 2 2 4 . . . . . 1 . Max Gunslinging Chain 1 | . 1 . 1 . 1 1 1 . . . . . 1 . Shots Hit Robots 905 | 5 112 167 27 . 30 124 140 . 2 25 158 17 70 28 Core Hits 412 | 4 41 66 10 . 16 59 61 . . 8 78 9 47 13 Critical Kills 3 | . . . . . . 2 1 . . . . . . . Critical Parts Destroyed 10 | . . 1 . . . 1 5 . . . . . 1 2 Critical Strikes 34 | . 2 1 . . . 3 8 . . . 11 2 5 2 Burn 11 | . 2 . . . . . . . . . 4 2 3 . Destroy 10 | . . 1 . . . 3 6 . . . . . . . Smash 3 | . . . . . . . . . . . . . 1 2 Sever 10 | . . . . . . . 2 . . . 7 . 1 . Melee Attacks 232 | . 19 2 . . . 15 26 2 2 21 89 12 33 11 Impact 67 | . 19 2 . . . 15 2 . . . . . 18 11 Slashing 102 | . . . . . . . 11 2 . 5 72 7 5 . Piercing . | . . . . . . . . . . . . . . . Sneak Attacks 35 | . 1 1 . . . 1 10 . . 11 10 1 . . Combat Hostiles 4 | . . . . . . . . . . 4 . . . . Follow-up Attacks 3 | . . . . . . . . . . . 2 . 1 . Damage Inflicted 20829 | 57 1340 2818 606 . 671 2543 2957 . . 292 6150 333 2334 728 Guns 11781 | 57 1265 2324 431 . 501 1954 2036 . . 205 1591 285 891 241 Cannons 995 | . . . . . . 76 45 . . 25 24 48 419 358 Explosions 3830 | . . 415 175 . 170 387 657 . . . 1093 . 933 . Melee 4216 | . 74 76 . . . 123 219 . . 62 3442 . 91 129 Ramming 7 | . 1 3 . . . 3 . . . . . . . . Kinetic 8422 | 11 979 2324 431 . 501 2030 2036 . . . . . . 110 Thermal 4428 | 46 286 . 94 . . . 25 . . 230 1615 333 1310 489 Explosive 3729 | . . 415 81 . 170 380 657 . . . 1093 . 933 . Electromagnetic 27 | . . . . . . 7 20 . . . . . . . Impact 476 | . 74 76 . . . 123 . . . . . . 74 129 Slashing 3740 | . . . . . . . 219 . . 62 3442 . 17 . Piercing . | . . . . . . . . . . . . . . . Highest Corruption 5 | . . . . . . 2 3 . . . . 1 5 1 Average Corruption 2 | . . . . . . 2 2 . . . . 1 4 1 Corruption Purged 2 | . . . . . . . . . . . . 2 . . Corruption Blocked . | . . . . . . . . . . . . . . . Effects 34 | . . . . . . . 25 . . . . . 9 . Message Errors 10 | . . . . . . . 7 . . . . . 3 . Matter Fused 10 | . . . . . . . 7 . . . . . 3 . Heat Flow Errors 3 | . . . . . . . 2 . . . . . 1 . Energy Discharges 2 | . . . . . . . 1 . . . . . 1 . Parts Rejected 2 | . . . . . . . 2 . . . . . . . Data Loss (minor) 4 | . . . . . . . 3 . . . . . 1 . Data Loss (major) 1 | . . . . . . . 1 . . . . . . . Misfires 1 | . . . . . . . 1 . . . . . . . Alerts 1 | . . . . . . . 1 . . . . . . . Overload Shots . | . . . . . . . . . . . . . . . Overflow Damage 372 | . . 107 22 . . . 12 . . . 124 . 42 65 Projectiles 18 | . . . . . . . . . . . . . 10 8 Explosions 96 | . . 34 22 . . . 12 . . . 11 . 17 . Melee 258 | . . 73 . . . . . . . . 113 . 15 57 Knockbacks 4 | . . . . . . 3 . . . . . . . 1 Impact 1 | . . . . . . . . . . . . . . 1 Kinetic 3 | . . . . . . 3 . . . . . . . . Secondary . | . . . . . . . . . . . . . . . Self-Inflicted Damage 308 | . . . . . 13 . 122 . . . 28 . 145 . Shots 13 | . . . . . 1 . 6 . . . 1 . 5 . Rammed 3 | . 1 1 . . . 1 . . . . . . . . Targets Rammed 3 | . 1 1 . . . 1 . . . . . . . . Kicked . | . . . . . . . . . . . . . . . Crushed . | . . . . . . . . . . . . . . . Highest Temperature 372 | . 205 120 192 . 130 121 271 . . 125 294 372 266 318 Average Temperature 63 | . 68 28 87 . 44 37 64 . . 68 76 109 83 112 Received Heat Transfer 3507 | . 462 255 162 . 180 603 558 . . 66 504 60 276 381 Effects 7 | . . . . . . . . . . . . . 4 3 Energy Bleed 1 | . . . . . . . . . . . . . 1 . Interference 6 | . . . . . . . . . . . . . 3 3 Siege Activations . | . . . . . . . . . . . . . . . Robots Corrupted . | . . . . . . . . . . . . . . . Combat Hostiles . | . . . . . . . . . . . . . . . Parts Fried 2 | . . . . . . . . . . . . . . 2 Impact Corruptions 4 | . . 1 . . . . . . . . . . 1 2 Robots Melted 1 | . . . . . . . . . . . . 1 . . Combat Hostiles 1 | . . . . . . . . . . . . 1 . . Parts Melted 18 | . 1 . . . . . . . . 4 5 2 4 2 Heat Transferred 8833 | 100 916 . 100 . . . 50 . . 472 2966 782 2551 896 Parts Sabotaged . | . . . . . . . . . . . . . . . Parts Stolen . | . . . . . . . . . . . . . . . Parts Stripped . | . . . . . . . . . . . . . . . Power Chain Reactions . | . . . . . . . . . . . . . . . Alert | -11 -10 -9 -9 -9 -8 -8 -8 -7 -7 -7 -7 -7 -7 -6 ------- Run | Yrd Mat Mat Min Exi Min Mat Gar Fac Was Fac Gar Fac Gar Fac Peak Influence 1294 | 15 237 636 478 . 108 281 1294 679 182 196 960 562 1221 679 Initial 679 | . 9 . 240 . . 41 46 679 167 113 7 504 193 640 Average 324 | 4 57 307 140 . 41 95 727 646 166 115 443 432 712 593 Maximum Alert Level 4 | . 1 2 2 . . 1 4 2 . . 3 2 4 2 Low Security (%) 49 | 100 93 37 67 . 100 85 13 . 100 100 25 . 3 . Level 1 18 | . 6 29 27 . . 14 3 . . . 30 30 36 . Level 2 17 | . . 33 5 . . . 22 100 . . 12 69 6 100 Level 3 9 | . . . . . . . 37 . . . 30 . 23 . Level 4 5 | . . . . . . . 22 . . . . . 30 . Level 5 . | . . . . . . . . . . . . . . . High Security . | . . . . . . . . . . . . . . . Max Security . | . . . . . . . . . . . . . . . Squads Dispatched 10 | . 3 3 . . . 2 . . . . . 1 . 1 Investigation 1 | . 1 . . . . . . . . . . . . . Extermination 1 | . . . . . . . . . . . . 1 . . Reinforcement 7 | . 2 3 . . . 2 . . . . . . . . Assault . | . . . . . . . . . . . . . . . Garrison 1 | . . . . . . . . . . . . . . 1 Intercept . | . . . . . . . . . . . . . . . Searches Triggered . | . . . . . . . . . . . . . . . Construction Impeded . | . . . . . . . . . . . . . . . Haulers Reinforced . | . . . . . . . . . . . . . . . Active Scanning Responses . | . . . . . . . . . . . . . . . Cargo Convoy Interrupts . | . . . . . . . . . . . . . . . Stealth | -11 -10 -9 -9 -9 -8 -8 -8 -7 -7 -7 -7 -7 -7 -6 --------- Run | Yrd Mat Mat Min Exi Min Mat Gar Fac Was Fac Gar Fac Gar Fac Distress Signals 8 | . 3 4 . . . 1 . . . . . . . . Communications Jammed . | . . . . . . . . . . . . . . . Distress Signals . | . . . . . . . . . . . . . . . Times Spotted 235 | . 30 40 7 . 7 31 31 . 4 5 33 6 34 7 Peak Tracking Total 7 | . 5 5 3 . 4 6 7 . 4 1 4 2 4 3 Tactical Retreats 17 | . 2 3 . . . 5 3 . . . 3 . 1 . Traps | -11 -10 -9 -9 -9 -8 -8 -8 -7 -7 -7 -7 -7 -7 -6 ------- Run | Yrd Mat Mat Min Exi Min Mat Gar Fac Was Fac Gar Fac Gar Fac Traps Triggered 21 | . 1 . . . . 1 2 1 . . 7 2 6 1 Indirectly . | . . . . . . . . . . . . . . . Trap Hack Attempts . | . . . . . . . . . . . . . . . Triggered . | . . . . . . . . . . . . . . . Disarmed . | . . . . . . . . . . . . . . . Reprogrammed . | . . . . . . . . . . . . . . . Reused . | . . . . . . . . . . . . . . . Traps Extracted . | . . . . . . . . . . . . . . . Installed . | . . . . . . . . . . . . . . . Triggered . | . . . . . . . . . . . . . . . Machines | -11 -10 -9 -9 -9 -8 -8 -8 -7 -7 -7 -7 -7 -7 -6 ---------- Run | Yrd Mat Mat Min Exi Min Mat Gar Fac Was Fac Gar Fac Gar Fac Machines Disabled 32 | . . 2 2 . 1 4 9 . . . 7 . 7 . Max in Single Turn 2 | . . 1 2 . 1 2 2 . . . 1 . 1 . Garrison Relay 12 | . . . . . . . 4 . . . 4 . 4 . Phase Generator 1 | . . . . . . . 1 . . . . . . . Machines Repaired . | . . . . . . . . . . . . . . . Machines Dismantled . | . . . . . . . . . . . . . . . Machines Sabotaged . | . . . . . . . . . . . . . . . Overloaded Fab Kills . | . . . . . . . . . . . . . . . Hacking | -11 -10 -9 -9 -9 -8 -8 -8 -7 -7 -7 -7 -7 -7 -6 --------- Run | Yrd Mat Mat Min Exi Min Mat Gar Fac Was Fac Gar Fac Gar Fac Machines Accessed 43 | . 4 5 . 5 . 9 3 2 . 5 2 4 2 2 Terminals 25 | . 4 4 . . . 6 3 . . 2 2 1 2 1 Fabricators . | . . . . . . . . . . . . . . . Repair Stations 1 | . . . . . . . . . . 1 . . . . Recycling Units 3 | . . . . . . 1 . . . 1 . 1 . . Scanalyzers 5 | . . 1 . . . 1 . 2 . . . 1 . . Garrison Access 4 | . . . . . . 1 . . . 1 . 1 . 1 Total Hacks 136 | . 9 17 . 50 . 29 3 6 . 9 2 5 2 4 Successful 91 | . 6 7 . 50 . 16 1 3 . 4 . 3 . 1 Failed 44 | . 2 10 . . . 13 2 3 . 5 2 2 2 3 Catastrophic 10 | . . 2 . . . 3 1 1 . 1 . . 2 . Database Lockouts 1 | . 1 . . . . . . . . . . . . . Manual 48 | . 7 14 . 1 . 19 1 . . 2 . . . 4 Terminals 59 | . 9 14 . . . 23 3 . . 2 2 2 2 2 Fabricators . | . . . . . . . . . . . . . . . Repair Stations 3 | . . . . . . . . . . 3 . . . . Recycling Units 4 | . . . . . . 1 . . . 2 . 1 . . Scanalyzers 14 | . . 3 . . . 4 . 6 . . . 1 . . Garrison Access 6 | . . . . . . 1 . . . 2 . 1 . 2 Terminal Hacks 67 | . 6 3 . 50 . 6 1 . . . . 1 . . Record 49 | . . . . 49 . . . . . . . . . . Robot Analysis 2 | . 2 . . . . . . . . . . . . . Prototype ID Bank 2 | . 1 . . . . 1 . . . . . . . . Branch Access Points 3 | . 1 1 . . . 1 . . . . . . . . Terminal Index 1 | . . 1 . . . . . . . . . . . . Unreport Threat 3 | . . . . . . 2 . . . . . 1 . . Locate Traps 1 | . 1 . . . . . . . . . . . . . Maintenance Status 1 | . 1 . . . . . . . . . . . . . Patrol Status 2 | . . 1 . . . 1 . . . . . . . . Garrison Status 1 | . . . . . . 1 . . . . . . . . Garrison Registry 1 | . . . . . . . 1 . . . . . . . Derelict Proto ID Bank 1 | . . . . 1 . . . . . . . . . . Fabricator Hacks . | . . . . . . . . . . . . . . . Repair Station Hacks 2 | . . . . . . . . . . 2 . . . . Scan Component 1 | . . . . . . . . . . 1 . . . . Repair 1 | . . . . . . . . . . 1 . . . . Recycling Unit Hacks 1 | . . . . . . 1 . . . . . . . . Report Inventory 1 | . . . . . . 1 . . . . . . . . Scanalyzer 10 | . . 2 . . . 4 . 3 . . . 1 . . Insert Component 6 | . . 1 . . . 2 . 2 . . . 1 . . Analyze 4 | . . 1 . . . 2 . 1 . . . . . . Garrison Access Hacks 4 | . . . . . . 1 . . . 2 . 1 . . Unlock Access 3 | . . . . . . 1 . . . 1 . 1 . . Coupler Status 1 | . . . . . . . . . . 1 . . . . Unauthorized Hacks 7 | . . 2 . . . 4 . . . . . . . 1 Terminals 6 | . . 2 . . . 4 . . . . . . . . Botnet 6 | . . 2 . . . 4 . . . . . . . . Fabricators . | . . . . . . . . . . . . . . . Repair Stations . | . . . . . . . . . . . . . . . Recycling Units . | . . . . . . . . . . . . . . . Scanalyzers . | . . . . . . . . . . . . . . . Garrison Access 1 | . . . . . . . . . . . . . . 1 Restock 1 | . . . . . . . . . . . . . . 1 Data Cores Recovered 1 | . 1 . . . . . . . . . . . . . Used . | . . . . . . . . . . . . . . . Hacking Detections 29 | . 3 4 . . . 6 2 2 . 5 1 2 2 2 Full Trace Events . | . . . . . . . . . . . . . . . Feedback Events . | . . . . . . . . . . . . . . . Feedback Blocked . | . . . . . . . . . . . . . . . Robot Schematics Acquired . | . . . . . . . . . . . . . . . Robots Built . | . . . . . . . . . . . . . . . Authchips . | . . . . . . . . . . . . . . . Time . | . . . . . . . . . . . . . . . Total Robot Build Rating . | . . . . . . . . . . . . . . . Part Schematics Acquired 3 | . . 1 . . . 2 . . . . . . . . Parts Built . | . . . . . . . . . . . . . . . Authchips . | . . . . . . . . . . . . . . . Time . | . . . . . . . . . . . . . . . Total Part Build Rating . | . . . . . . . . . . . . . . . Parts Repaired . | . . . . . . . . . . . . . . . Time 86 | . . . . . . . . . . 86 . . . . Parts Recycled . | . . . . . . . . . . . . . . . Recycled Matter . | . . . . . . . . . . . . . . . Retrieved Matter . | . . . . . . . . . . . . . . . Retrieved Components . | . . . . . . . . . . . . . . . Parts Scanalyzed 5 | . . 1 . . . 2 . 2 . . . . . . Part Schematics Acquired 3 | . . 1 . . . 2 . . . . . . . . Parts Damaged 1 | . . . . . . . . 1 . . . . . . Bothacking | -11 -10 -9 -9 -9 -8 -8 -8 -7 -7 -7 -7 -7 -7 -6 ------------ Run | Yrd Mat Mat Min Exi Min Mat Gar Fac Was Fac Gar Fac Gar Fac Used RIF Installer 3 | . . . . . . . 1 . . . 1 . 1 . Threat Obfuscator 1 | . . . . . . . . . . . . . 1 . Robot Detection 1 | . . . . . . . . . . . 1 . . . Robots Hacked 21 | . . . . . . . 2 . 2 5 5 1 6 . Non-combat 3 | . . . . . . . . . . 3 . . . . Combat 18 | . . . . . . . 2 . 2 2 5 1 6 . Robot Hacks Applied 24 | . . . . . . . 2 . 2 7 5 2 6 . parse_system 1 | . . . . . . . . . . 1 . . . . drop_inventory 1 | . . . . . . . . . . 1 . . . . ignore_targets 2 | . . . . . . . . . 2 . . . . . find_garrison 1 | . . . . . . . . . . 1 . . . . disrupt_area 1 | . . . . . . . . . . . 1 . . . overload_power 1 | . . . . . . . . . . 1 . . . . reboot_system 1 | . . . . . . . . . . . . . 1 . go_dormant 1 | . . . . . . . . . . 1 . . . . streamctrl_high 1 | . . . . . . . . . . . 1 . . . formatsys_low 1 | . . . . . . . . . . 1 . . . . formatsys_high 13 | . . . . . . . 2 . . 1 3 2 5 . Relay Couplers Released 49 | . . . . . . . 16 . . . 15 . 14 4 Machine Destruction 45 | . . . . . . . 16 . . . 15 . 14 . Programmers 4 | . . . . . . . . . . . . . . 4 Attached 13 | . . . . . . . 2 . 1 1 3 1 5 . Fabnet Peak Effective % . | . . . . . . . . . . . . . . . Robots Rewired 6 | . . . . . . . 3 . . . 3 . . . Allies Hacked . | . . . . . . . . . . . . . . . Hacks Repelled . | . . . . . . . . . . . . . . . Allies | -11 -10 -9 -9 -9 -8 -8 -8 -7 -7 -7 -7 -7 -7 -6 -------- Run | Yrd Mat Mat Min Exi Min Mat Gar Fac Was Fac Gar Fac Gar Fac Total Allies 25 | . . . 5 . . . 5 . . 2 7 1 5 . Largest Group 5 | . . . 5 4 3 . 3 1 1 2 3 1 5 . Highest-Rated Group 120 | . . . 82 71 40 . 120 40 40 30 90 32 109 . Highest-Rated Ally 40 | . . . 31 31 16 . 40 40 40 16 30 32 32 . Total Orders 4 | . . . . . . . . . . . . . 4 . STAY 2 | . . . . . . . . . . . . . 2 . FOLLOW 2 | . . . . . . . . . . . . . 2 . Ally Attacks 121 | . . . 3 . 17 . 19 . 7 2 18 3 52 . Total Damage 2355 | . . . 41 . 220 . 530 . 222 34 447 56 805 . Kills 26 | . . . 1 . 4 . 6 . . 1 4 1 9 . Allies Corrupted 1 | . . . . . . . . . . . 1 . . . Allies Melted . | . . . . . . . . . . . . . . . Intel | -11 -10 -9 -9 -9 -8 -8 -8 -7 -7 -7 -7 -7 -7 -6 ------- Run | Yrd Mat Mat Min Exi Min Mat Gar Fac Was Fac Gar Fac Gar Fac Robot Analysis Total 2 | . 2 . . . . . . . . . . . . . Derelict Logs Recovered 1 | . . . 1 . . . . . . . . . . . Drone Launches . | . . . . . . . . . . . . . . . Drone Recoveries . | . . . . . . . . . . . . . . . Exploration | -11 -10 -9 -9 -9 -8 -8 -8 -7 -7 -7 -7 -7 -7 -6 ------------- Run | Yrd Mat Mat Min Exi Min Mat Gar Fac Was Fac Gar Fac Gar Fac Turns Passed 18674 | 77 2417 1786 2431 1193 857 2065 1685 476 95 551 2053 573 1762 653 Spaces Moved 10176 | 50 1434 804 1244 625 313 1024 802 277 77 409 1318 393 1076 330 Core 2 | 2 . . . . . . . . . . . . . . Treads 2081 | . 4 . 1 . 1 977 802 277 . . . . . 19 Legs . | . . . . . . . . . . . . . . . Wheels 8093 | 48 1430 804 1243 625 312 47 . . 77 409 1318 393 1076 311 Hover . | . . . . . . . . . . . . . . . Flight . | . . . . . . . . . . . . . . . Fastest Speed 50 | 50 80 145 190 190 190 115 145 160 105 105 105 115 115 115 Average Speed 146 | 90 137 162 190 190 190 156 156 160 105 105 111 117 118 131 Slowest Speed 320 | 95 240 190 320 190 320 160 240 160 105 105 130 130 130 250 Overloaded Moves . | . . . . . . . . . . . . . . . Propulsion Burnouts . | . . . . . . . . . . . . . . . Robots Hopped . | . . . . . . . . . . . . . . . Cave-ins Triggered . | . . . . . . . . . . . . . . . Exploration Rate (%) 55 | 3 99 70 100 93 58 71 83 7 67 11 69 13 85 8 Regions Visited 14 Branch Regions 3 Pre-discovered Areas 2 | . . . 1 1 . . . . . . . . . . Known Exits Taken 4 | . . 1 . . . 1 . . . 1 . 1 . . Unknown Exits Taken 5 | 1 1 . 1 1 1 . . . . . . . . . Scrap Searched 5 | . . . 3 . 2 . . . . . . . . . Spaces Dug 56 | . 12 1 . . . 13 . . . 3 2 7 13 5 Terrain Destroyed 512 | . 12 36 50 . 43 30 168 . . 3 68 7 90 5 Melee 50 | . 12 1 . . . 13 . . . 3 2 7 7 5 Projectile 7 | . . . . . . 5 1 . . . 1 . . . AOE 455 | . . 35 50 . 43 12 167 . . . 65 . 83 . Terrain Rammed . | . . . . . . . . . . . . . . . Walls Destroyed . | . . . . . . . . . . . . . . . Machines Disabled . | . . . . . . . . . . . . . . . Actions | -11 -10 -9 -9 -9 -8 -8 -8 -7 -7 -7 -7 -7 -7 -6 --------- Run | Yrd Mat Mat Min Exi Min Mat Gar Fac Was Fac Gar Fac Gar Fac Total 12678 | 71 1674 1111 1282 631 535 1338 1087 301 89 496 1679 472 1418 494 Wait 889 | . 56 63 10 . 179 119 70 . 4 20 71 16 156 125 Move 10166 | 49 1433 803 1243 624 312 1024 801 277 76 409 1317 393 1075 330 Hop . | . . . . . . . . . . . . . . . Pick Up 258 | 10 25 34 3 1 2 55 39 5 2 10 38 7 25 2 Fast Attach 24 | 6 4 . . . 1 4 4 1 . 2 1 1 . . Attach 68 | 1 4 3 1 . 3 8 8 2 . 1 13 4 14 6 Detach 19 | . 1 . . . 1 2 3 . . 2 3 5 1 1 Swap 282 | . 16 78 6 2 15 20 38 5 4 22 30 16 28 2 Drop 143 | 1 19 40 2 3 1 21 23 3 1 2 23 2 2 . Fire 522 | 4 96 87 17 . 21 69 74 6 . 7 55 8 61 17 Melee 229 | . 19 2 . . . 15 26 2 2 21 87 12 32 11 Ram 1 | . 1 . . . . . . . . . . . . . Kick . | . . . . . . . . . . . . . . . Crush 2 | . . 1 . . . 1 . . . . . . . . Escape Stasis 72 | . . . . . . . . . . . 40 8 24 . Rewire 3 | . . . . 1 . . 1 . . . 1 . . . Trap . | . . . . . . . . . . . . . . . Miscellaneous . | . . . . . . . . . . . . . . . Route ------- -11/Scrapyard -10/Materials (discovered 5 exits: *Mat x3 / *Min / [*Sub]) -9/Materials (discovered 3 exits: *Mat x2 / *Min) -9/Mines (discovered 3 exits: *Mat x2 / *Exi) -9/Exiles (discovered 2 exits: [*Min x2]) -8/Mines -8/Materials (discovered 4 exits: *Fac x2 / *Sto / Gar) -8/Garrison (discovered 4 exits: *Fac x3 / [Mat]) -7/Factory -7/Waste -7/Factory -7/Garrison (discovered 3 exits: *Fac x3) -7/Factory -7/Garrison (discovered 3 exits: *Fac x3) -6/Factory (discovered 1 exit: *Low) History --------- Turn | Location | Event 22 | -11/Scrapyard | Discovered new exit (range 15) 78 | -11/Scrapyard | Entered Materials 213 | -10/Materials | Lost 3 parts (2p1n) 226 | -10/Materials | Identified exit to Mines 263 | -10/Materials | Core integrity fell below 50% 301 | -10/Materials | Central database locked down 310 | -10/Materials | Discovered new exit (range 8) 535 | -10/Materials | Discovered new exit (range 5) 581 | -10/Materials | Build established: Scavenger-Mutant 678 | -10/Materials | Derelicts attacked the area 687 | -10/Materials | Discovered new exit (range 11) 894 | -10/Materials | Build established: Mutant 1666 | -10/Materials | Discovered new exit (range 13) 2495 | -10/Materials | Entered another Materials area 2495 | -9/Materials | Evolved 2 slots: Utility x1, Weapon x1 2902 | -9/Materials | Build established: Tank 3180 | -9/Materials | Discovered new exit (range 8) 3842 | -9/Materials | Identified exit to Mines 3957 | -9/Materials | Discovered new exit (range 8) 4281 | -9/Materials | Entered Mines 4367 | -9/Mines | Learned location of Storage (-8) 4369 | -9/Mines | Assembled infested the area 4819 | -9/Mines | Learned Materials stockpile data 4888 | -9/Mines | Discovered new exit (range 5) 4920 | -9/Mines | Discovered new exit (range 7) 5427 | -9/Mines | Discovered new exit (range 13) 5541 | -9/Mines | Assisted by bots powering up and referring to "LRC-V3" 6712 | -9/Mines | Entered Exiles 6712 | -9/Exiles | Accompanied by 4 allies 6742 | -9/Exiles | Led the pair of lost Derelicts to a safe place 6743 | -9/Exiles | Discovered new exit (range 14) 6805 | -9/Exiles | Met 8R-AWN 6836 | -9/Exiles | Met EX-HEX 6960 | -9/Exiles | Met EX-DEC 6997 | -9/Exiles | Visited The Gauntlet 7241 | -9/Exiles | Learned location of Zion (-6) 7359 | -9/Exiles | Discovered new exit (range 14) 7473 | -9/Exiles | Met EX-BIN 7638 | -9/Exiles | Aligned with FarCom system 7640 | -9/Exiles | Given EX-Vault access code 7697 | -9/Exiles | Opened EX-Vault 7722 | -9/Exiles | Found Lightpack 2.0 7762 | -9/Exiles | Warned to stay clear of 0b10 Research branches 7905 | -9/Exiles | Left Exiles lab with Lightpack 2.0 7905 | -9/Exiles | Entered Mines 7905 | -8/Mines | Accompanied by 3 allies 8223 | -8/Mines | Build established: Skirmisher 8561 | -8/Mines | Lost 3 parts (3u) 8579 | -8/Mines | Build established: Tank 8716 | -8/Mines | Discovered new exit (range 12) 8762 | -8/Mines | Entered Materials 8762 | -8/Materials | Evolved 2 slots: Utility x2 9353 | -8/Materials | Discovered new exit (range 8) 9386 | -8/Materials | Identified exit to Storage 10140 | -8/Materials | Build established: Hauler-Skirmisher 10397 | -8/Materials | Discovered new exit (range 16) 10827 | -8/Materials | Identified exit to Garrison 10827 | -8/Materials | Entered Garrison 10847 | -8/Garrison | Triggered checkpoint 10902 | -8/Garrison | Garrison Relay disabled 11007 | -8/Garrison | Triggered checkpoint 11057 | -8/Garrison | Triggered checkpoint 11100 | -8/Garrison | Triggered checkpoint 11186 | -8/Garrison | Installed Relay Interface Framework 11282 | -8/Garrison | Garrison Relay disabled 11383 | -8/Garrison | Lost 4 parts (2n1u1w) 11418 | -8/Garrison | Triggered checkpoint 11445 | -8/Garrison | Triggered checkpoint 11550 | -8/Garrison | Discovered new exit (range 26) 11550 | -8/Garrison | Discovered new exit (range 69) 11550 | -8/Garrison | Discovered new exit (range 97) 11550 | -8/Garrison | Discovered new exit (range 73) 11868 | -8/Garrison | Phase Generator disabled 12065 | -8/Garrison | Triggered checkpoint 12125 | -8/Garrison | Garrison Relay disabled 12285 | -8/Garrison | Triggered checkpoint 12393 | -8/Garrison | Triggered checkpoint 12426 | -8/Garrison | Garrison Relay disabled 12512 | -8/Garrison | Entered Factory 12512 | -7/Factory | Accompanied by 1 ally 12512 | -7/Factory | Evolved 2 slots: Utility x2 12809 | -7/Factory | Build established: Bothacker-Skirmisher 12988 | -7/Factory | Sucked down chute 12988 | -7/Factory | Entered Waste 12993 | -7/Waste | 1 allies followed down the chute 13015 | -7/Waste | Spotted C-40 Crusher 13019 | -7/Waste | Spotted C-40 Crusher 13031 | -7/Waste | Spotted C-40 Crusher 13037 | -7/Waste | Spotted C-40 Crusher 13038 | -7/Waste | Spotted C-40 Crusher 13054 | -7/Waste | Discovered new exit (range 16) 13074 | -7/Waste | Found Broken Quantum Capacitor 13083 | -7/Waste | Entered Factory 13587 | -7/Factory | Build established: Bothacker-Mutant 13633 | -7/Factory | Identified exit to Garrison 13634 | -7/Factory | Entered Garrison 13634 | -7/Garrison | Accompanied by 2 allies 13665 | -7/Garrison | Heavy support dispatched to Factory 13672 | -7/Garrison | Triggered checkpoint 13786 | -7/Garrison | Garrison Relay disabled 13896 | -7/Garrison | Triggered checkpoint 13956 | -7/Garrison | Triggered checkpoint 13997 | -7/Garrison | Triggered checkpoint 14002 | -7/Garrison | Triggered checkpoint 14062 | -7/Garrison | Discovered new exit (range 10) 14295 | -7/Garrison | Discovered new exit (range 10) 14304 | -7/Garrison | Build established: Hauler-Skirmisher 14380 | -7/Garrison | Triggered checkpoint 14712 | -7/Garrison | Discovered new exit (range 12) 14757 | -7/Garrison | Build established: Hauler-Mutant 14783 | -7/Garrison | Triggered checkpoint 14830 | -7/Garrison | Garrison Relay disabled 14942 | -7/Garrison | Triggered checkpoint 15000 | -7/Garrison | Triggered checkpoint 15054 | -7/Garrison | Garrison Relay disabled 15206 | -7/Garrison | Expanded RIF knowledge: Robot Detection 15304 | -7/Garrison | Build established: Bothacker-Mutant 15366 | -7/Garrison | Triggered checkpoint 15370 | -7/Garrison | Heavy support dispatched to Factory 15491 | -7/Garrison | Garrison Relay disabled 15616 | -7/Garrison | Found Prototype Device 15687 | -7/Garrison | Entered Factory 15873 | -7/Factory | Identified Active Sensor Suite 16056 | -7/Factory | P-60 Hacker assimilated allied Guardian 4a 16260 | -7/Factory | Identified exit to Garrison 16260 | -7/Factory | Entered Garrison 16260 | -7/Garrison | Accompanied by 1 ally 16316 | -7/Garrison | Triggered checkpoint 16356 | -7/Garrison | Garrison Relay disabled 16824 | -7/Garrison | Triggered checkpoint 17017 | -7/Garrison | Triggered checkpoint 17035 | -7/Garrison | Triggered checkpoint 17066 | -7/Garrison | Triggered checkpoint 17127 | -7/Garrison | Discovered new exit (range 10) 17154 | -7/Garrison | Triggered checkpoint 17226 | -7/Garrison | Expanded RIF knowledge: Threat Obfuscation 17318 | -7/Garrison | Discovered new exit (range 11) 17434 | -7/Garrison | Discovered new exit (range 11) 17460 | -7/Garrison | Triggered checkpoint 17841 | -7/Garrison | Core integrity fell below 50% 17880 | -7/Garrison | Lost 7 parts (1n1u5w) 17886 | -7/Garrison | Triggered checkpoint 17981 | -7/Garrison | Garrison Relay disabled 18022 | -7/Garrison | Entered Factory 18022 | -6/Factory | Evolved 2 slots: Utility x2 18122 | -6/Factory | Build established: Hauler-Mutant 18383 | -6/Factory | Discovered new exit (range 15) 18414 | -6/Factory | Identified exit to Lower Caves 18662 | -6/Factory | Garrison activated, responded to threat 18675 | -6/Factory | Self-destructed Last Messages --------------- 18429_ U-05 Engineer lays Concrete. 18433_ T-07 Excavator is excavating. 18439_ Acquired Imp. Medium Treads. 18526_ Connecting with Garrison Access... >>Trojan(Restock) Trojan loaded successfully. Testing... Manipulated coupler status records. 18529_ ALERT: Unscheduled coupler replacement inbound for Garrison vCe.6a. 18545_ ALERT: Security rotation in progress. 18662_ P-70 Sage calls for garrison reinforcements. 18662_ ALERT: Activating Garrison Access F003. 18663_ Y-54 Guardian emerges from the garrison. 18670_ Plasma Cannon destroyed. 18671_ Mic. Fission Core melted. 18671_ P-70 Sage destroyed. 18674_ Overheating: System interference. 18674_ Imp. Signal Interpreter temporarily disabled. 18674_ Imp. Dynamic Insulation System temporarily disabled. 18674_ Imp. Heavy Armor Plating destroyed. Map ----- +----------------------------------------------------+ | | | | | | | | | | | #############????????????????????????????????????? | | #???????????????????????????????????? | | "" ! "" "" #???????????????????????????????????? | | R "" "" #???????????????????????????????????? | | "" """ """ #???????????????????????????????????? | | ! """ """ #???????????########################? | | """ """ #???######### | | ##### | | + | | ##### ### | | #???# #### #?# ########???? | | #####+############ ############ #??????????? | | ??# ## # #??????????? | | ??# ## """ # ##+######?????? | | ??# ^ ## """ # ## #?????? | | ??# ## """ # ## """ #?????? | | ## " " # ## """ #?????? | | ###### ########## ##Y"G"Y # ## """ #?????? | | ????# ???????## ## " # ## "" #?????? | | ????####???????# #=%! # ## "" =#?????? | | ???????????????# ##@######## ## #?????? | | ???????????????# !!! # """ #?????? | | ???????????????# > # """ #?????? | | ???????????????# + """ #?????? | | ???????????????# ########## # "" #?????? | | ???????????????# #????????# # "" #?????? | | ???????????????#########????????# # #?????? | | ????????????????????????????????# # = #?????? | | ????????????????????????????????# ########?????? | | ??????????????????????########### #????????????? | | ??????????????????????# # #????????????? | | ??????????????????????# # #????????????? | | ??????????????????????# # #????????????? | | ??????????????????????# + +????????????? | | ????##+#??????????????# # #????????????? | | ????# ############### %# #????????????? | | ???## %+ # #????????????? | | ???+ ######## # #????????????? | | ???## #??############### #????????????? | | ????# #??# ## #????????????? | | ????# #### "??# #????????????? | | ????# + """ """ Y"#? ????????????? | | ????# #### """ """ ""#? ????????????? | | ????# #####+##### """ """ +? ????????????? | | ????# ??# ## "" "" #? ???????????? | +----------------------------------------------------+ Best States ------------- Heat Dissipation 88 Energy Generation 25 Energy Capacity 350 Matter Stores 300 Matter Capacity 300 Sight Range 16 Terrain Scan Density 10 Additional Mass Support 12 EM Shielding 3 Armor Coverage 600 Core Shielding 20 Propulsion Shielding 33 Weapon Cycling 15 Evasion (%) 44 Recoil Reduction 2 Energy Filtering 30 Offensive Hacking 10 Relay Coupler Types 3 Relay Coupler Value 68 Item Schematics ----------------- Hcp. Storage Unit | -9/Materials | Scanalyzed Arm. Huge Wheel | -8/Materials | Scanalyzed Huge Storage Unit | -8/Materials | Scanalyzed Robot Schematics ------------------ None Fabricated ------------ Nothing Alien Tech Used ----------------- None Achievements -------------- None Challenges ------------ None Game ------ Seed CarbideRecyclingFalx Manual? 0 Play Time 04:24:48 Cumulative 270.5 hours Start 2024.06.11 @ 20:02:32 End 2024.06.17 @ 20:35:34 Sessions 11 Manual Loads 0 Difficulty Rogue Special Mode None Game No. 101 Rogue 101 Adventurer 0 Explorer 0 Win Type - Total 3 Types 1/0/1/0/0/0/1/0/0 Lore% 63 Gallery% 75 Achievement% 65 Wizard Run 0 Options --------- Layout 0 ASCII 1 Keyboard 1 Movement Numpad Keybinds 0 Fullscreen 1 Font 36/Smallcaps Map View 76x50 Zoom Use 0% Tactical HUD 1 Map Filters NONE Filters NONE Steam 1 RUN: dbaacc6c-b9ed-46f3-9fbd-100373a04c50